bitfinex-derivatives/quotes_BTCF0:USTF0_20241023
["timestamp","ask_amount","ask_price","bid_price","bid_amount"]
[1729656166971,0.0002,67165.0,67164.0,0.229594]
[1729656168272,0.0002,67165.0,67164.0,0.590394]
[1729656168866,0.0002,67165.0,67164.0,0.68185535]
[1729656168867,1e-06,67165.0,67164.0,0.68185535]
[1729656169078,1e-06,67165.0,67164.0,1.12853535]
[1729656169270,0.0002,67177.0,67169.0,0.34]
[1729656169579,0.0002,67177.0,67172.0,0.420387]
[1729656169768,0.0002,67177.0,67172.0,0.51184835]
[1729656170380,0.0002,67177.0,67172.0,0.68184835]
[1729656171680,0.0002,67177.0,67172.0,0.77748835]
[1729656174178,0.0002,67177.0,67172.0,0.686027]
[1729656178986,0.0002,67177.0,67172.0,0.685987]
[1729656182186,0.0004,67185.0,67172.0,0.94654055]
[1729656182390,0.0004,67185.0,67184.0,0.47955361]
[1729656182683,0.0004,67185.0,67184.0,0.781176]
[1729656188090,0.064,67186.0,67184.0,0.781176]
[1729656188091,0.0002,67186.0,67185.0,0.059575]
[1729656188303,0.0002,67186.0,67185.0,0.11870125]
[1729656189088,0.0002,67186.0,67185.0,0.059575]
[1729656192492,0.0002,67186.0,67184.0,0.74906379]
[1729656192694,0.0002,67185.0,67184.0,0.80787979]
[1729656194189,0.0002,67185.0,67184.0,0.97787979]
[1729656194994,0.0002,67185.0,67184.0,0.80787979]
[1729656195396,0.04482908,67185.0,67184.0,0.80787979]
[1729656197091,0.0002,67185.0,67184.0,0.80787979]
[1729656199288,0.0002,67185.0,67184.0,0.86700604]
[1729656202399,0.0002,67185.0,67184.0,0.80787979]
[1729656206702,0.0002,67185.0,67184.0,0.97787979]
[1729656210300,0.0002,67185.0,67184.0,0.91787979]
[1729656211208,0.0002,67185.0,67184.0,0.99185383]
[1729656211810,0.0002,67185.0,67184.0,1.08212158]
[1729656212203,0.0002,67185.0,67184.0,0.91787979]
[1729656212909,0.04509232,67185.0,67184.0,0.91787979]
[1729656213106,0.09721441,67185.0,67184.0,0.91787979]
[1729656213708,0.0450068,67185.0,67184.0,0.91787979]
[1729656213912,0.0002,67185.0,67184.0,0.91787979]
[1729656214107,0.0970296,67185.0,67184.0,0.91787979]
[1729656217800,0.0970296,67185.0,67184.0,0.80787979]
[1729656218701,0.0970296,67185.0,67184.0,0.91787979]
[1729656219303,0.0002,67185.0,67184.0,1.00820924]
[1729656220807,0.0002,67185.0,67184.0,0.89820924]
[1729656221009,0.0002,67185.0,67184.0,0.61166302]
[1729656221208,0.0002,67185.0,67184.0,0.44707979]
[1729656221923,0.1102,67185.0,67184.0,0.44707979]
[1729656223717,0.169775,67185.0,67184.0,0.44707979]
[1729656223917,0.169775,67185.0,67184.0,0.50638659]
[1729656224112,0.1102,67185.0,67184.0,0.50638659]
[1729656227219,0.1102,67185.0,67184.0,0.44707979]
[1729656227220,0.20661532,67185.0,67184.0,0.44707979]
[1729656228128,0.20661558,67185.0,67184.0,0.44707979]
[1729656228625,0.20661558,67185.0,67184.0,0.08627979]
[1729656228831,0.26619058,67185.0,67184.0,0.08627979]
[1729656229023,0.20657167,67185.0,67184.0,0.059576]
[1729656229416,0.26614667,67185.0,67184.0,0.059576]
[1729656233429,0.31920056,67185.0,67184.0,0.059576]
[1729656233632,0.47381578,67185.0,67184.0,0.059576]
[1729656234230,0.32487613,67185.0,67184.0,0.059576]
[1729656234435,0.169775,67185.0,67184.0,0.059576]
[1729656247332,0.169775,67185.0,67184.0,0.10406768]
[1729656247939,0.169775,67185.0,67184.0,0.04449168]
[1729656248143,0.059577,67183.0,67182.0,0.02676943]
[1729656248330,0.169777,67183.0,67181.0,0.0445057]
[1729656248532,0.0002,67182.0,67181.0,0.1040847]
[1729656248731,0.059778,67182.0,67181.0,0.1040847]
[1729656248941,0.059778,67182.0,67181.0,0.059579]
[1729656249340,0.21330205,67182.0,67181.0,0.059579]
[1729656249532,0.15502901,67182.0,67181.0,0.059579]
[1729656250054,0.2133038,67182.0,67181.0,0.059579]
[1729656255450,0.21332324,67182.0,67181.0,0.059579]
[1729656257343,0.0002,67182.0,67181.0,0.1188858]
[1729656260465,0.0002,67182.0,67181.0,0.11891719]
[1729656260759,0.0002,67182.0,67181.0,0.059579]
[1729656260949,0.059778,67182.0,67181.0,0.059579]
[1729656261857,0.1421,67182.0,67179.0,0.04451561]
[1729656262060,0.2202,67180.0,67178.0,0.04451561]
[1729656262263,0.059582,67178.0,67177.0,0.04451561]
[1729656262451,0.059583,67176.0,67175.0,0.04451561]
[1729656262760,0.169783,67176.0,67175.0,0.04451561]
[1729656263363,0.169783,67176.0,67175.0,0.10409961]
[1729656263553,0.169783,67176.0,67175.0,0.059584]
[1729656263748,0.169783,67176.0,67173.0,0.02677308]
[1729656263749,0.059585,67174.0,67173.0,0.02677308]
[1729656263949,0.0002,67174.0,67171.0,0.421147]
[1729656264151,0.169787,67172.0,67171.0,0.420387]
[1729656264457,0.26950153,67172.0,67171.0,0.420387]
[1729656264861,0.26947905,67172.0,67171.0,0.420387]
[1729656267760,0.33036179,67172.0,67171.0,0.420387]
[1729656268055,0.33036179,67172.0,67171.0,0.38704986]
[1729656268564,0.26947905,67172.0,67171.0,0.38704986]
[1729656269162,0.33030243,67172.0,67171.0,0.38704986]
[1729656269360,0.26947905,67172.0,67171.0,0.38704986]
[1729656271063,0.6909741,67172.0,67171.0,0.02624986]
[1729656271265,0.059588,67171.0,67169.0,0.05999]
[1729656271564,0.15948105,67170.0,67169.0,0.05999]
[1729656271863,0.26948105,67170.0,67169.0,0.05999]
[1729656272070,0.26948105,67170.0,67169.0,0.08709582]
[1729656272471,0.169789,67170.0,67169.0,0.08709582]
[1729656275168,0.279789,67170.0,67169.0,0.02750582]
[1729656275361,0.169789,67170.0,67169.0,0.02750582]
[1729656279471,0.21521716,67170.0,67169.0,0.02750582]
[1729656280969,0.059591,67167.0,67166.0,0.0004]
[1729656281175,0.32521916,67167.0,67166.0,0.0004]
[1729656282276,0.32521916,67167.0,67166.0,0.02786207]
[1729656284180,0.32490933,67167.0,67166.0,0.02786207]
[1729656285077,0.37720405,67167.0,67166.0,0.02786207]
[1729656285579,0.37727841,67167.0,67166.0,0.02786207]
[1729656286076,0.37727841,67167.0,67166.0,0.0004]
[1729656287469,0.375351,67167.0,67166.0,0.0004]
[1729656288769,0.059598,67159.0,67151.0,0.0004]
[1729656289070,0.42576,67167.0,67153.0,0.02711229]
[1729656289071,0.279602,67155.0,67153.0,0.02711229]
[1729656289271,0.279802,67155.0,67153.0,0.02711229]
[1729656297188,0.059802,67155.0,67153.0,0.02711229]
[1729656297390,0.279802,67155.0,67153.0,0.02711229]
[1729656301090,0.169802,67155.0,67153.0,0.02711229]
[1729656301593,0.279802,67155.0,67153.0,0.02711229]
[1729656316691,0.32554934,67155.0,67153.0,0.02711229]
[1729656318002,0.279802,67155.0,67153.0,0.02711229]
[1729656322203,0.169802,67155.0,67153.0,0.02711229]
[1729656322404,0.279802,67155.0,67153.0,0.02711229]
[1729656322910,0.169802,67155.0,67153.0,0.02711229]
[1729656323103,0.279802,67155.0,67153.0,0.02711229]
[1729656323300,0.169802,67155.0,67153.0,0.02711229]
[1729656323500,0.279802,67155.0,67153.0,0.02711229]
[1729656323697,0.169802,67155.0,67153.0,0.02711229]
[1729656324095,0.169802,67155.0,67153.0,0.10123205]
[1729656324799,0.169802,67155.0,67154.0,0.16433724]
[1729656325201,0.169802,67155.0,67154.0,0.09021748]
[1729656325910,0.279802,67155.0,67154.0,0.0004]
[1729656326304,0.059605,67152.0,67151.0,0.0004]
[1729656326515,0.279805,67152.0,67151.0,0.0004]
[1729656326806,0.32540197,67152.0,67151.0,0.0004]
[1729656330319,0.279805,67152.0,67151.0,0.0004]
[1729656331108,0.32546055,67152.0,67151.0,0.0004]
[1729656331310,0.279805,67152.0,67151.0,0.0004]
[1729656331712,0.32545863,67152.0,67151.0,0.0004]
[1729656332924,0.279805,67152.0,67151.0,0.0004]
[1729656334214,0.279805,67152.0,67151.0,0.05982427]
[1729656338814,0.640605,67152.0,67151.0,0.05982427]
[1729656340617,0.279805,67152.0,67151.0,0.05982427]
[1729656340821,0.640605,67152.0,67151.0,0.0004]
[1729656344930,0.279805,67152.0,67151.0,0.0004]
[1729656345119,0.640605,67152.0,67151.0,0.0004]
[1729656345423,0.640605,67152.0,67147.0,0.05942427]
[1729656345424,0.059606,67150.0,67147.0,0.05942427]
[1729656345625,0.169608,67148.0,67147.0,0.05942427]
[1729656345818,0.169808,67148.0,67147.0,0.05942427]
[1729656346019,0.169808,67148.0,67146.0,0.05943068]
[1729656346020,0.1102,67148.0,67146.0,0.05943068]
[1729656346221,0.1102,67147.0,67146.0,0.05943068]
[1729656346525,0.169809,67147.0,67146.0,0.05943068]
[1729656346718,0.059613,67143.0,67142.0,0.07432397]
[1729656346913,0.059613,67143.0,67141.0,0.15589045]
[1729656346914,0.169813,67143.0,67141.0,0.15589045]
[1729656347418,0.0002,67142.0,67141.0,0.15589045]
[1729656347619,0.0002,67142.0,67141.0,0.17157721]
[1729656347927,0.0002,67142.0,67141.0,0.08156648]
[1729656349231,0.059813,67142.0,67141.0,0.08156648]
[1729656356033,0.059813,67142.0,67141.0,0.26059723]
[1729656358736,0.059813,67142.0,67141.0,0.17165351]
[1729656363127,0.059813,67142.0,67141.0,0.17150564]
[1729656364338,0.059813,67142.0,67141.0,0.26044936]
[1729656366045,0.059813,67142.0,67141.0,0.17150564]
[1729656366946,0.059813,67142.0,67141.0,0.26061844]
[1729656367237,0.059813,67142.0,67141.0,0.17150564]
[1729656367843,0.059813,67142.0,67141.0,0.26061844]
[1729656368028,0.059813,67142.0,67141.0,0.26066452]
[1729656369035,0.059813,67142.0,67141.0,0.17155172]
[1729656370039,0.059813,67142.0,67141.0,0.08156648]
[1729656371836,0.169813,67142.0,67141.0,0.08156648]
[1729656378041,0.169813,67142.0,67141.0,0.17167767]
[1729656378848,0.169813,67142.0,67141.0,0.27907881]
[1729656379052,0.169813,67142.0,67141.0,0.63987881]
[1729656382346,0.169813,67142.0,67141.0,0.63990824]
[1729656382642,0.0002,67142.0,67141.0,0.63990824]
[1729656382848,0.1102,67142.0,67141.0,0.63990824]
[1729656383347,0.1102,67142.0,67141.0,0.27910824]
[1729656383544,0.1102,67142.0,67141.0,0.63990824]
[1729656385550,0.1102,67142.0,67141.0,0.27910824]
[1729656385747,0.1102,67142.0,67141.0,0.62162691]
[1729656386053,0.15551058,67142.0,67141.0,0.44236648]
[1729656388956,0.21512358,67142.0,67141.0,0.44236648]
[1729656389457,0.21512358,67142.0,67141.0,0.08156648]
[1729656389656,0.21512358,67142.0,67141.0,0.02195248]
[1729656389854,0.15551058,67142.0,67140.0,0.3608]
[1729656390151,0.10512458,67141.0,67140.0,0.3608]
[1729656390849,0.10512458,67141.0,67140.0,0.420415]
[1729656392455,0.10512458,67141.0,67140.0,0.059615]
[1729656393152,0.059814,67141.0,67140.0,0.14977541]
[1729656395247,0.169814,67141.0,67140.0,0.09016041]
[1729656395550,0.530614,67141.0,67140.0,0.09016041]
[1729656395750,0.059615,67140.0,67139.0,0.00223415]
[1729656395950,0.169815,67140.0,67139.0,0.00223415]
[1729656396153,0.169815,67140.0,67136.0,0.0004]
[1729656396154,0.059616,67139.0,67136.0,0.0004]
[1729656396354,0.059616,67139.0,67126.0,0.16379567]
[1729656396355,0.059623,67131.0,67127.0,0.0219079]
[1729656396543,0.640623,67131.0,67126.0,0.0004]
[1729656396948,0.640623,67131.0,67130.0,0.05982681]
[1729656397150,0.530623,67131.0,67130.0,0.05982681]
[1729656397352,0.530623,67131.0,67130.0,0.0004]
[1729656397748,0.640623,67131.0,67130.0,0.05978681]
[1729656397958,0.530623,67131.0,67130.0,0.05978681]
[1729656398350,0.530623,67131.0,67130.0,0.0004]
[1729656404158,0.169823,67131.0,67130.0,0.0004]
[1729656404955,0.059823,67131.0,67130.0,0.0004]
[1729656405167,0.169823,67131.0,67130.0,0.0004]
[1729656417464,0.169823,67131.0,67130.0,0.04482915]
[1729656419581,0.169823,67131.0,67130.0,0.0004]
[1729656421767,0.169823,67131.0,67130.0,0.060024]
[1729656422368,0.169823,67131.0,67130.0,0.11941081]
[1729656423171,0.169823,67131.0,67130.0,0.060024]
[1729656426177,0.169823,67131.0,67130.0,0.0004]
[1729656428272,0.169823,67131.0,67130.0,0.060024]
[1729656430185,0.169823,67131.0,67130.0,0.14983173]
[1729656432894,0.169823,67131.0,67130.0,0.14986241]
[1729656433689,0.169823,67131.0,67130.0,0.14986816]
[1729656438189,0.169823,67131.0,67130.0,0.060024]
[1729656442390,0.169823,67131.0,67130.0,0.0004]
[1729656445088,0.169823,67131.0,67130.0,0.08999323]
[1729656448098,0.169823,67131.0,67130.0,0.09000661]
[1729656452997,0.169823,67131.0,67130.0,0.08999352]
[1729656460195,0.169823,67131.0,67130.0,0.0004]
[1729656460595,0.21580543,67131.0,67130.0,0.0004]
[1729656463394,0.169823,67131.0,67130.0,0.0004]
[1729656463601,0.21584683,67131.0,67130.0,0.0004]
[1729656463800,0.169823,67131.0,67130.0,0.0004]
[1729656467904,0.059823,67131.0,67130.0,0.0004]
[1729656468204,0.169823,67131.0,67130.0,0.08999514]
[1729656475310,0.21570803,67131.0,67130.0,0.0004]
[1729656476908,0.169823,67131.0,67130.0,0.0004]
[1729656477209,0.21571983,67131.0,67130.0,0.0004]
[1729656479519,0.10571983,67131.0,67130.0,0.0004]
[1729656479807,0.21571983,67131.0,67130.0,0.0004]
[1729656480906,0.21562846,67131.0,67130.0,0.0004]
[1729656481304,0.169823,67131.0,67130.0,0.0004]
[1729656483114,0.21562722,67131.0,67130.0,0.0004]
[1729656483310,0.169823,67131.0,67130.0,0.09017274]
[1729656484519,0.0002,67137.0,67134.0,0.059621]
[1729656484703,0.0002,67137.0,67136.0,0.530419]
[1729656484903,0.0002,67137.0,67136.0,0.70935236]
[1729656485109,0.0002,67137.0,67136.0,0.62019174]
[1729656485307,0.0002,67137.0,67136.0,0.70924393]
[1729656486213,0.0002,67137.0,67136.0,0.62019174]
[1729656487214,0.0002,67141.0,67136.0,0.73019174]
[1729656487422,0.0002,67141.0,67140.0,0.169615]
[1729656487621,0.0002,67141.0,67140.0,0.25938774]
[1729656488314,0.00223487,67145.0,67144.0,0.059612]
[1729656488619,0.11,67152.0,67144.0,0.62149388]
[1729656488916,0.65523692,67154.0,67153.0,0.059604]
[1729656489116,0.65523692,67154.0,67153.0,0.11882525]
[1729656489117,0.65411691,67154.0,67153.0,0.11882525]
[1729656490223,0.65411691,67154.0,67153.0,0.059604]
[1729656490224,0.69829551,67154.0,67153.0,0.059604]
[1729656491613,0.0441786,67154.0,67153.0,0.506324]
[1729656491824,0.3608,67157.0,67156.0,0.059601]
[1729656492016,0.40513832,67157.0,67156.0,0.169601]
[1729656492215,0.3608,67157.0,67156.0,0.616321]
[1729656492719,0.00223409,67163.0,67156.0,0.55672]
[1729656492720,0.36303409,67163.0,67156.0,0.55672]
[1729656492925,0.36303409,67163.0,67153.0,0.08185607]
[1729656492926,0.04442504,67162.0,67161.0,0.530397]
[1729656493112,0.00223409,67163.0,67162.0,0.123996]
[1729656493312,0.00223409,67163.0,67162.0,0.570676]
[1729656494722,0.1102,67169.0,67164.0,0.059594]
[1729656494915,0.0002,67169.0,67164.0,0.169594]
[1729656495117,0.0002,67169.0,67164.0,0.506274]
[1729656498024,0.0002,67169.0,67164.0,0.059594]
[1729656498025,0.1102,67169.0,67164.0,0.059594]
[1729656499323,0.0002,67169.0,67164.0,0.059594]
[1729656499930,0.0002,67169.0,67168.0,0.05959]
[1729656500226,0.0002,67169.0,67168.0,0.53039]
[1729656500425,0.0002,67169.0,67168.0,0.97703]
[1729656504938,0.0002,67169.0,67168.0,1.07235]
[1729656511646,0.0002,67169.0,67168.0,0.96235]
[1729656511835,0.0002,67169.0,67168.0,0.62571]
[1729656512234,0.0002,67169.0,67168.0,0.42039]
[1729656512542,0.0002,67169.0,67168.0,0.53039]
[1729656513328,0.04573361,67169.0,67168.0,0.53039]
[1729656513638,0.0002,67169.0,67168.0,0.53039]
[1729656514144,0.09860027,67169.0,67168.0,0.53039]
[1729656515734,0.09860027,67169.0,67168.0,0.42039]
[1729656515933,0.059592,67167.0,67166.0,0.059592]
[1729656516140,0.26819227,67167.0,67166.0,0.059592]
[1729656517045,0.20860027,67167.0,67163.0,0.3616]
[1729656517244,0.169794,67164.0,67163.0,0.420395]
[1729656517434,0.26819427,67164.0,67163.0,0.420395]
[1729656517742,0.26750582,67164.0,67163.0,0.420395]
[1729656520349,0.169794,67164.0,67163.0,0.420395]
[1729656522339,0.169794,67164.0,67163.0,0.059595]
[1729656523640,0.1102,67164.0,67163.0,0.059595]
[1729656528446,0.26860225,67164.0,67163.0,0.059595]
[1729656532060,0.26858572,67164.0,67163.0,0.059595]
[1729656533349,0.32241934,67164.0,67163.0,0.059595]
[1729656533559,0.32241934,67164.0,67163.0,0.169595]
[1729656534055,0.15858572,67164.0,67163.0,0.169595]
[1729656534762,0.32241934,67164.0,67163.0,0.169595]
[1729656535349,0.16403362,67164.0,67163.0,0.169595]
[1729656535658,0.0002,67164.0,67163.0,0.22881625]
[1729656536652,0.0002,67164.0,67163.0,0.169595]
[1729656536867,0.0002,67164.0,67163.0,0.22881873]
[1729656537249,0.0002,67164.0,67163.0,0.22882583]
[1729656537547,0.0002,67164.0,67163.0,0.22882424]
[1729656537854,0.0002,67164.0,67163.0,0.169595]
[1729656539142,0.0002,67164.0,67163.0,0.22883475]
[1729656539349,0.0002,67164.0,67163.0,0.169595]
[1729656540744,0.1102,67164.0,67163.0,0.059595]
[1729656540943,0.66688,67164.0,67156.0,0.07407755]
[1729656541148,0.471,67157.0,67153.0,0.07409096]
[1729656541352,0.169803,67154.0,67152.0,0.10407555]
[1729656541559,0.1102,67153.0,67152.0,0.059604]
[1729656541853,0.169804,67153.0,67152.0,0.059604]
[1729656542152,0.169804,67153.0,67152.0,0.10405217]
[1729656542552,0.169804,67153.0,67152.0,0.059604]
[1729656545454,0.05961,67147.0,67145.0,0.3608]
[1729656545658,0.11,67146.0,67142.0,0.00223379]
[1729656545867,0.3608,67147.0,67142.0,0.00223379]
[1729656545868,0.1102,67143.0,67142.0,0.06184679]
[1729656547964,0.1102,67143.0,67142.0,0.08403171]
[1729656549249,0.1102,67143.0,67142.0,0.19403171]
[1729656549250,0.0002,67143.0,67142.0,0.19403171]
[1729656551162,0.0002,67143.0,67142.0,0.55483171]
[1729656558360,0.0002,67143.0,67142.0,0.51892267]
[1729656558563,0.1102,67143.0,67142.0,0.44483171]
[1729656560269,0.0002,67143.0,67142.0,0.44483171]
[1729656561360,0.1102,67143.0,67142.0,0.44483171]
[1729656561556,0.169813,67143.0,67142.0,0.44483171]
[1729656563365,0.169813,67143.0,67142.0,0.08403171]
[1729656564363,0.1102,67143.0,67142.0,0.08403171]
[1729656573569,0.1102,67143.0,67142.0,0.17415543]
[1729656576583,0.0002,67143.0,67142.0,0.17415543]
[1729656578081,0.0002,67143.0,67142.0,0.17419136]
[1729656580468,0.0002,67143.0,67142.0,0.12850478]
[1729656581583,0.0002,67143.0,67142.0,0.08403171]
[1729656583580,0.0002,67143.0,67142.0,0.12850478]
[1729656584474,0.0002,67143.0,67142.0,0.08403171]
[1729656588574,0.0002,67143.0,67142.0,0.26329706]
[1729656589277,0.0002,67143.0,67142.0,0.17424487]
[1729656589478,0.0002,67143.0,67142.0,0.26329706]
[1729656589786,0.0002,67143.0,67142.0,0.17424487]
[1729656590181,0.0002,67143.0,67142.0,0.28172303]
[1729656590684,0.0002,67143.0,67142.0,0.2817799]
[1729656591678,0.0002,67143.0,67142.0,0.17424487]
[1729656594387,0.059813,67143.0,67142.0,0.17424487]
[1729656595381,0.169813,67143.0,67142.0,0.17424487]
[1729656597185,0.169813,67143.0,67142.0,0.28196375]
[1729656597684,0.169813,67143.0,67142.0,0.17433075]
[1729656601096,0.169813,67143.0,67142.0,0.17428931]
[1729656603686,0.1102,67143.0,67142.0,0.08403171]
[1729656604287,0.0002,67143.0,67142.0,0.08403171]
[1729656606997,0.059813,67143.0,67142.0,0.08403171]
[1729656607995,0.0002,67143.0,67142.0,0.08403171]
[1729656610701,0.0002,67143.0,67142.0,0.2633763]
[1729656611405,0.0002,67143.0,67142.0,0.17432768]
[1729656612803,0.0002,67143.0,67142.0,0.17209389]
[1729656613199,0.0002,67143.0,67142.0,0.53289389]
[1729656613795,0.0002,67143.0,67142.0,0.62189998]
[1729656613992,0.0002,67143.0,67142.0,0.53289389]
[1729656614401,0.0002,67143.0,67142.0,0.17209389]
[1729656614707,0.0002,67143.0,67142.0,0.53289389]
[1729656614905,0.0002,67143.0,67142.0,0.53283846]
[1729656616197,0.0002,67143.0,67142.0,0.17203846]
[1729656616399,0.0002,67143.0,67142.0,0.53283846]
[1729656616801,0.0002,67143.0,67142.0,0.62183851]
[1729656617303,0.0002,67143.0,67142.0,0.17203846]
[1729656617705,0.0002,67143.0,67142.0,0.53283846]
[1729656618105,0.0002,67143.0,67142.0,0.17203846]
[1729656618299,0.0002,67143.0,67142.0,0.53283846]
[1729656618711,0.04515558,67143.0,67142.0,0.44259792]
[1729656619093,0.15515558,67143.0,67142.0,0.44259792]
[1729656619707,0.1102,67143.0,67142.0,0.44259792]
[1729656620006,0.21472662,67143.0,67142.0,0.38298492]
[1729656620222,0.20718639,67143.0,67140.0,0.0004]
[1729656620401,0.169614,67141.0,67140.0,0.0004]
[1729656620706,0.15680039,67141.0,67140.0,0.0004]
[1729656620910,0.26680039,67141.0,67140.0,0.0004]
[1729656621109,0.82316694,67141.0,67140.0,0.0004]
[1729656621407,0.88172173,67141.0,67140.0,0.0004]
[1729656621712,0.82316694,67141.0,67140.0,0.0004]
[1729656624903,1.18396694,67141.0,67140.0,0.0004]
[1729656625408,1.20623532,67141.0,67140.0,0.0004]
[1729656625713,1.10972238,67141.0,67140.0,0.0004]
[1729656627503,1.20940238,67141.0,67140.0,0.0004]
[1729656628207,1.10972238,67141.0,67140.0,0.0004]
[1729656628409,1.20940238,67141.0,67140.0,0.0004]
[1729656630003,1.10972238,67141.0,67140.0,0.0004]
[1729656630204,1.20940238,67141.0,67140.0,0.0004]
[1729656633417,0.84860238,67141.0,67140.0,0.0004]
[1729656633718,1.2535658,67141.0,67140.0,0.0004]
[1729656637216,0.8067258,67141.0,67140.0,0.0004]
[1729656638020,0.67445742,67141.0,67140.0,0.0004]
[1729656638222,0.630294,67141.0,67140.0,0.0004]
[1729656639228,0.67449592,67141.0,67140.0,0.0004]
[1729656640527,0.57481592,67141.0,67140.0,0.0004]
[1729656640710,0.530614,67141.0,67140.0,0.0004]
[1729656641719,0.420614,67141.0,67140.0,0.0004]
[1729656642024,0.530614,67141.0,67140.0,0.060015]
[1729656643523,0.530614,67141.0,67140.0,0.11936903]
[1729656644423,0.530614,67141.0,67140.0,0.05975403]
[1729656645536,0.530614,67141.0,67140.0,0.0004]
[1729656647922,0.530614,67141.0,67140.0,0.060015]
[1729656648127,0.361,67141.0,67140.0,0.060015]
[1729656648344,0.361,67141.0,67140.0,0.170015]
[1729656648516,0.361,67141.0,67140.0,0.2247168]
[1729656648827,0.361,67141.0,67140.0,0.060015]
[1729656651923,0.361,67141.0,67140.0,0.170015]
[1729656654441,0.361,67141.0,67140.0,0.060015]
[1729656655336,0.059814,67141.0,67140.0,0.060015]
[1729656667534,0.059814,67141.0,67140.0,0.13414191]
[1729656670947,0.059814,67141.0,67140.0,0.22466592]
[1729656671350,0.059814,67141.0,67140.0,0.13414191]
[1729656675640,0.059814,67141.0,67140.0,0.07452691]
[1729656676338,0.10438334,67141.0,67140.0,0.0004]
[1729656679344,0.059814,67141.0,67140.0,0.0004]
[1729656684552,0.0002,67141.0,67140.0,0.0004]
[1729656684755,0.0002,67141.0,67140.0,0.060015]
[1729656685448,0.0002,67141.0,67140.0,0.13414191]
[1729656686155,0.0002,67141.0,67140.0,0.060015]
[1729656686944,0.04493891,67141.0,67140.0,0.060015]
[1729656689250,0.0002,67141.0,67140.0,0.060015]
[1729656690542,0.04507704,67141.0,67140.0,0.060015]
[1729656693758,0.0002,67141.0,67140.0,0.060015]
[1729656694457,0.0002,67141.0,67140.0,0.15018133]
[1729656696058,0.0002,67141.0,67140.0,0.23921238]
[1729656696851,0.0002,67141.0,67140.0,0.15018133]
[1729656697052,0.0002,67141.0,67140.0,0.23921238]
[1729656701062,0.0002,67141.0,67140.0,0.23909585]
[1729656701560,0.0002,67141.0,67140.0,0.420815]
[1729656709365,0.0002,67141.0,67140.0,0.59986246]
[1729656711163,0.0002,67141.0,67140.0,0.51083141]
[1729656711369,0.0002,67141.0,67140.0,0.59986246]
[1729656712261,0.0002,67141.0,67140.0,0.51083141]
[1729656714768,0.0002,67141.0,67140.0,0.62083141]
[1729656715461,0.0002,67141.0,67140.0,0.530815]
[1729656715656,0.0002,67141.0,67140.0,0.62085598]
[1729656715859,0.0002,67141.0,67140.0,0.72817624]
[1729656716056,0.0002,67141.0,67140.0,0.62085598]
[1729656716274,0.0002,67141.0,67140.0,0.72816328]
[1729656719065,0.0002,67141.0,67140.0,0.36736328]
[1729656719275,0.0002,67141.0,67140.0,0.72816328]
[1729656720472,0.0002,67141.0,67140.0,0.72828819]
[1729656723758,0.0002,67141.0,67140.0,0.72854248]
[1729656724576,0.04528236,67141.0,67140.0,0.530815]
[1729656728581,0.04521071,67141.0,67140.0,0.530815]
[1729656731577,0.04521071,67141.0,67140.0,0.72862114]
[1729656731578,0.0002,67141.0,67140.0,0.72862114]
[1729656731878,0.0002,67141.0,67140.0,0.530815]
[1729656732077,0.0002,67141.0,67140.0,0.63837965]
[1729656732280,0.0002,67141.0,67140.0,0.72862135]
[1729656732978,0.0002,67141.0,67140.0,0.6210567]
[1729656733479,0.0002,67141.0,67140.0,0.530815]
[1729656735783,0.032,67147.0,67146.0,0.05961]
[1729656735983,0.032,67147.0,67146.0,0.16961]
[1729656738580,0.032,67147.0,67146.0,0.2824943]
[1729656739471,0.032,67147.0,67146.0,0.19219889]
[1729656739674,0.129152,67147.0,67146.0,0.19219889]
[1729656743382,0.07695599,67147.0,67146.0,0.19219889]
[1729656746480,0.032,67147.0,67146.0,0.2823874]
[1729656754595,0.032,67147.0,67146.0,0.19219889]
[1729656754792,0.07701289,67147.0,67146.0,0.19219889]
[1729656754986,0.12927496,67147.0,67146.0,0.19219889]
[1729656755192,0.07701289,67147.0,67146.0,0.19219889]
[1729656761610,0.07701289,67147.0,67146.0,0.28237594]
[1729656761611,0.032,67147.0,67146.0,0.28237594]
[1729656764606,0.032,67147.0,67146.0,0.28245131]
[1729656767412,0.091609,67147.0,67146.0,0.17245131]
[1729656776814,0.13645856,67147.0,67146.0,0.08219889]
[1729656784616,0.032,67147.0,67146.0,0.08219889]
[1729656784923,0.032,67147.0,67146.0,0.17252083]
[1729656785817,0.3608,67151.0,67150.0,0.059606]
[1729656787523,0.420405,67151.0,67150.0,0.059606]
[1729656791733,0.51770267,67151.0,67150.0,0.059606]
[1729656793726,0.420405,67151.0,67150.0,0.059606]
[1729656794327,0.059605,67151.0,67150.0,0.059606]
[1729656795230,0.15690568,67151.0,67150.0,0.059606]
[1729656796922,0.09730068,67151.0,67150.0,0.059606]
[1729656797133,0.05227589,67151.0,67150.0,0.059606]
[1729656797325,0.3608,67153.0,67152.0,0.059605]
[1729656797939,0.3608,67153.0,67150.0,0.059606]
[1729656798235,0.0324,67154.0,67149.0,0.11]
[1729656798430,0.092003,67154.0,67153.0,0.059604]
[1729656798637,0.452803,67154.0,67153.0,0.059604]
[1729656798829,0.092003,67154.0,67153.0,0.059604]
[1729656805246,0.059605,67151.0,67150.0,0.13377853]
[1729656805849,0.059805,67151.0,67150.0,0.13377853]
[1729656806442,0.059805,67151.0,67150.0,0.22380825]
[1729656807247,0.059805,67151.0,67150.0,0.059606]
[1729656807950,0.059606,67150.0,67149.0,0.05931188]
[1729656808144,0.169806,67150.0,67149.0,0.05931188]
[1729656813555,0.19135822,67150.0,67149.0,0.05931188]
[1729656814462,0.28883326,67150.0,67148.0,0.059608]
[1729656814661,0.07540547,67149.0,67148.0,0.059608]
[1729656814852,0.07560547,67149.0,67148.0,0.059608]
[1729656818459,0.12797641,67149.0,67148.0,0.059608]
[1729656818654,0.18758341,67149.0,67148.0,0.059608]
[1729656818965,0.13521247,67149.0,67148.0,0.059608]
[1729656819160,0.18758371,67149.0,67148.0,0.059608]
[1729656820162,0.18758082,67149.0,67148.0,0.059608]
[1729656821264,0.13521191,67149.0,67148.0,0.059608]
[1729656822363,0.090107,67149.0,67148.0,0.059608]